bitfinex/quotes_ETHUSD_20240816
["timestamp","ask_amount","ask_price","bid_price","bid_amount"]
[1723773950220,0.33897979,2570.3,2570.2,36.362]
[1723773950374,0.33897979,2570.3,2570.2,1.362]
[1723773951493,0.33897979,2570.3,2570.0,1.362]
[1723773951494,2.2507,2570.2,2570.0,1.362]
[1723773951696,0.33900669,2570.1,2570.0,1.362]
[1723773953394,0.09071174,2570.1,2570.0,1.362]
[1723773953905,0.09061197,2570.1,2570.0,1.362]
[1723773954113,5.16712,2570.5,2570.0,1.362]
[1723773954412,0.88897203,2570.4,2570.2,1.362]
[1723773954617,0.24832744,2570.3,2570.2,1.362]
[1723773955110,0.33893874,2570.3,2570.1,35.0]
[1723773955264,0.24832744,2570.2,2570.1,35.0]
[1723773955615,0.33892975,2570.2,2570.0,1.362]
[1723773955772,0.24832744,2570.1,2570.0,1.362]
[1723773955965,0.24832744,2570.1,2570.0,36.362]
[1723773956172,0.33899743,2570.1,2570.0,36.362]
[1723773957478,0.33899743,2570.1,2569.8,1.362]
[1723773957479,2.75569743,2570.1,2569.8,1.362]
[1723773957682,5.1406,2569.9,2569.5,2.17298418]
[1723773957868,0.33893117,2569.8,2569.5,1.362]
[1723773958179,0.24835641,2569.7,2569.5,1.362]
[1723773958363,0.24835641,2569.6,2569.5,1.362]
[1723773958762,0.08947813,2569.6,2569.5,1.362]
[1723773959003,0.33783454,2569.6,2569.5,1.362]
[1723773959769,0.33783454,2569.6,2569.4,35.0]
[1723773960006,0.33783454,2569.6,2569.1,2.72468]
[1723773960007,2.3381,2569.5,2569.3,1.362]
[1723773960205,5.61236,2569.5,2569.3,1.362]
[1723773960516,0.33781154,2569.4,2569.3,1.362]
[1723773961631,0.08933768,2569.4,2569.3,1.362]
[1723773962122,6.62703868,2569.8,2569.4,2.7243]
[1723773962281,0.33764793,2569.7,2569.6,1.362]
[1723773963000,0.3376367,2569.7,2569.6,1.362]
[1723773964095,0.3376367,2569.7,2569.6,36.362]
[1723773964453,0.08920967,2569.7,2569.6,36.362]
[1723773964786,6.62703868,2569.8,2569.6,36.362]
[1723773964981,0.08916357,2569.7,2569.6,36.362]
[1723773965383,6.62703868,2569.8,2569.6,36.362]
[1723773965718,0.08916978,2569.7,2569.6,36.362]
[1723773965922,6.62703868,2569.8,2569.6,36.362]
[1723773966108,0.08917289,2569.7,2569.6,36.362]
[1723773966313,6.62703868,2569.8,2569.6,36.362]
[1723773966500,0.08917289,2569.7,2569.6,36.362]
[1723773966819,6.62703868,2569.8,2569.6,36.362]
[1723773967021,0.089176,2569.7,2569.6,36.362]
[1723773967320,6.62703868,2569.8,2569.6,36.362]
[1723773967529,0.08916046,2569.7,2569.6,36.362]
[1723773967723,4.98953,2570.1,2569.6,36.362]
[1723773967724,2.2659,2570.1,2569.6,36.362]
[1723773967925,0.33763552,2570.0,2569.9,1.362]
[1723773968640,0.33763552,2570.0,2569.9,36.362]
[1723773970046,0.08923632,2570.0,2569.9,36.362]
[1723773970229,0.24837575,2570.1,2569.9,36.362]
[1723773970429,0.33763512,2570.0,2569.9,36.362]
[1723773970980,5.50594512,2570.0,2569.6,1.362]
[1723773971185,5.50594512,2570.0,2569.1,4.75412484]
[1723773971186,2.72405,2569.7,2569.1,4.75412484]
[1723773971497,2.72405,2569.7,2569.4,1.362]
[1723773971498,5.41712671,2569.6,2569.4,1.362]
[1723773971779,5.25800786,2569.6,2569.4,1.362]
[1723773971995,2.53383786,2569.6,2569.4,1.362]
[1723773972399,2.53383786,2569.6,2569.5,35.0]
[1723773972556,2.78229858,2569.6,2569.5,35.0]
[1723773972893,2.53383786,2569.6,2569.5,35.0]
[1723773973070,2.78228796,2569.6,2569.5,35.0]
[1723773973269,2.78229025,2569.6,2569.5,35.0]
[1723773973669,2.53383786,2569.6,2569.5,35.0]
[1723773973855,2.78228741,2569.6,2569.5,35.0]
[1723773974060,2.78229967,2569.6,2569.5,35.0]
[1723773974255,2.78229967,2569.6,2569.1,2.72461]
[1723773974499,2.53383786,2569.6,2569.4,1.362]
[1723773975767,5.25800786,2569.6,2569.4,1.362]
[1723773975967,2.72426,2569.5,2569.4,1.362]
[1723773976206,2.72426,2569.5,2569.2,35.0]
[1723773976207,2.81349879,2569.5,2569.2,36.362]
[1723773976694,5.53782879,2569.5,2569.2,36.362]
[1723773976879,2.81349879,2569.5,2569.2,36.362]
[1723773979401,2.81349879,2569.5,2569.2,1.362]
[1723773979402,0.24850428,2569.4,2569.2,1.362]
[1723773979800,0.08920837,2569.3,2569.2,1.362]
[1723773980259,5.16866,2569.6,2569.2,36.770677]
[1723773980461,5.16866,2569.6,2569.4,1.362]
[1723773980462,0.88773228,2569.5,2569.4,1.362]
[1723773984205,0.63923568,2569.5,2569.4,36.362]
[1723773984366,0.88772921,2569.5,2569.4,36.362]
[1723773985303,3.61198921,2569.5,2569.4,36.362]
[1723773985479,4.49004813,2569.5,2569.4,35.0]
[1723773986110,3.61198921,2569.5,2569.2,1.362]
[1723773986405,3.36349568,2569.5,2569.4,1.362]
[1723773986560,3.61197569,2569.5,2569.4,1.362]
[1723773988385,4.49003326,2569.5,2569.4,1.362]
[1723773989278,3.61197569,2569.5,2569.4,1.362]
[1723773992418,0.88771569,2569.5,2569.4,1.362]
[1723773992719,0.8877306,2569.5,2569.4,1.362]
[1723773992883,0.63923568,2569.5,2569.4,1.362]
[1723773993083,0.8877254,2569.5,2569.4,1.362]
[1723773993509,0.88773017,2569.5,2569.4,1.362]
[1723773993885,4.49004219,2569.5,2569.2,1.362]
[1723773994108,0.24849449,2569.4,2569.2,1.362]
[1723773994318,0.24849449,2569.4,2568.6,0.81098418]
[1723773994319,2.7574851,2569.3,2568.6,0.81098418]
[1723773994529,2.72475,2569.1,2568.6,1.362]
[1723773994730,2.75736462,2569.0,2568.6,1.362]
[1723773994941,0.24849449,2568.9,2568.6,1.362]
[1723773995143,0.33754352,2568.8,2568.4,2.72541]
[1723773995453,0.08904903,2568.8,2568.6,1.362]
[1723773995787,0.24860674,2568.7,2568.6,1.362]
[1723773995897,0.24860038,2568.7,2568.6,1.362]
[1723773996103,0.33757643,2568.7,2568.6,1.362]
[1723773996535,0.33757643,2568.7,2568.4,1.362]
[1723773996742,0.08897605,2568.7,2568.4,1.362]
[1723773996911,2.72492,2568.9,2568.4,1.362]
[1723773997103,0.33743226,2568.8,2568.6,1.362]
[1723773997303,0.08881412,2568.8,2568.6,1.362]
[1723774000373,5.04963,2569.3,2568.7,5.01492]
[1723774000679,5.04963,2569.3,2568.9,1.362]
[1723774000680,0.33729679,2569.2,2568.9,1.362]
[1723774000828,0.24857182,2569.1,2568.9,1.362]
[1723774001164,0.33728693,2569.0,2568.9,1.362]
[1723774001727,2.72492,2568.9,2568.3,2.03024898]
[1723774002075,2.72492,2568.9,2568.4,1.362]
[1723774002076,2.72517,2568.7,2568.4,1.362]
[1723774002443,0.0886711,2568.6,2568.4,1.362]
[1723774002774,0.0886711,2568.6,2568.1,1.362]
[1723774002775,2.57371835,2568.5,2568.1,1.362]
[1723774003066,0.08864999,2568.4,2568.3,1.362]
[1723774004330,0.08864999,2568.4,2568.3,6.37743]
[1723774004530,27.54464,2569.1,2568.4,2.72533]
[1723774004737,0.33712394,2568.9,2568.7,1.362]
[1723774004942,0.08852581,2568.9,2568.7,1.362]
[1723774005143,0.24859555,2568.8,2568.7,1.362]
[1723774005374,0.08851992,2568.8,2568.7,1.362]
[1723774005570,24.81985,2569.1,2568.7,1.362]
[1723774005781,0.33712557,2568.9,2568.7,1.362]
[1723774005932,0.08853203,2568.9,2568.7,1.362]
[1723774006138,0.24859453,2568.8,2568.7,1.362]
[1723774006349,0.33713408,2568.8,2568.7,1.362]
[1723774007032,2.72523,2568.6,2568.3,1.362]
[1723774007370,0.08857224,2568.5,2568.3,1.362]
[1723774007572,7.77542,2568.7,2568.3,1.362]
[1723774007874,0.33722767,2568.6,2568.3,1.362]
[1723774008059,0.08858435,2568.6,2568.3,1.362]
[1723774008570,0.08858435,2568.6,2568.5,1.362]
[1723774009174,0.55,2568.8,2568.5,1.362]
[1723774009340,0.24860564,2568.7,2568.5,1.362]
[1723774009535,0.08857432,2568.6,2568.5,1.362]
[1723774010086,0.55,2568.8,2568.3,2.72547]
[1723774010377,0.33717557,2568.7,2568.3,2.72547]
[1723774010547,0.08856466,2568.7,2568.3,3.270587]
[1723774010982,2.3251,2568.9,2568.5,2.72527]
[1723774011282,0.33719133,2568.8,2568.5,2.72527]
[1723774011437,0.08858299,2568.8,2568.5,2.72527]
[1723774011630,0.08858299,2568.8,2568.5,3.49932]
[1723774011879,24.81984,2569.1,2568.5,3.49932]
[1723774012051,0.08858242,2568.7,2568.5,3.49932]
[1723774012262,0.55,2569.0,2568.5,3.49932]
[1723774012440,0.08857342,2568.6,2568.5,3.49932]
[1723774012635,0.55,2569.0,2568.5,3.49932]
[1723774012873,0.088599,2568.6,2568.5,3.49932]
[1723774013175,0.08777459,2568.6,2568.5,6.22464]
[1723774013535,11.71317868,2569.3,2568.7,2.72509]
[1723774013770,1.50774672,2569.2,2568.7,2.72509]
[1723774013981,0.24857852,2569.1,2568.7,2.72509]
[1723774014276,11.71317868,2569.3,2568.8,5.09099]
[1723774014277,0.33640296,2569.0,2568.8,5.09099]
[1723774014451,0.08782612,2569.0,2568.8,5.09099]
[1723774014774,8.98863868,2569.3,2568.8,5.09099]
[1723774014975,0.33640336,2569.2,2568.9,2.7249]
[1723774015179,0.08787787,2569.2,2568.9,2.7249]
[1723774015380,6.62703868,2569.3,2569.1,2.72468]
[1723774015678,6.62703868,2569.3,2568.9,3.506409]
[1723774015679,0.08789663,2569.2,2568.9,3.506409]
[1723774015974,6.62703868,2569.3,2569.0,3.3119709]
[1723774016175,0.087945,2569.2,2569.0,3.3119709]
[1723774016378,6.62703868,2569.3,2569.0,3.3119709]
[1723774016675,0.087959,2569.2,2569.0,0.5872409]
[1723774017177,6.62703868,2569.3,2569.0,0.5872409]
[1723774017178,0.0880795,2569.1,2569.0,0.5872409]
[1723774017385,6.62703868,2569.3,2568.9,2.72481]
[1723774017565,0.33661749,2569.2,2568.9,2.72481]
[1723774017739,0.24850915,2569.1,2568.9,2.72481]
[1723774017940,0.08808413,2569.0,2568.9,2.72481]
[1723774018476,2.346,2569.4,2568.9,2.72481]
[1723774018680,0.08808724,2569.0,2568.7,2.72505]
[1723774018989,0.08807739,2568.9,2568.5,2.72526]
[1723774019192,2.346,2568.9,2568.5,2.72526]
[1723774019342,0.33661672,2568.8,2568.5,2.72526]
[1723774019542,0.08804352,2568.8,2568.5,2.72526]
[1723774019749,0.08804352,2568.8,2568.5,5.45051]
[1723774019993,5.07075,2569.1,2568.5,2.72525]
[1723774020172,0.8867701,2569.0,2568.5,2.72525]
[1723774020367,0.08820522,2569.0,2568.6,2.72511]
[1723774020556,0.08820522,2569.0,2568.7,2.72504]
[1723774021181,0.24855366,2568.9,2568.5,3.324975]
[1723774021346,0.3366034,2568.8,2568.5,2.72525]
[1723774021541,0.08804974,2568.8,2568.5,2.72525]
[1723774021743,0.08804974,2568.8,2568.7,2.72511]
[1723774021961,0.08804943,2568.8,2568.7,2.72511]
[1723774022157,2.375,2569.3,2568.8,2.72496]
[1723774022371,0.24854086,2569.2,2568.8,2.72496]
[1723774022570,0.24854086,2569.1,2569.0,2.72479]
[1723774022771,0.33669892,2569.1,2568.8,2.72492]
[1723774023049,0.33669892,2569.1,2568.6,2.72513]
[1723774023050,0.24854086,2569.0,2568.6,2.72513]
[1723774023243,2.35655806,2569.1,2568.6,2.72513]
[1723774023244,0.24854086,2568.9,2568.6,2.72513]
[1723774023480,0.08813696,2568.9,2568.6,2.72513]
[1723774023823,2.72465,2569.2,2568.6,2.72513]
[1723774023947,0.08812797,2568.8,2568.6,2.72513]
[1723774024147,2.72465,2569.2,2568.6,2.72513]
[1723774024371,0.33669326,2569.1,2568.6,2.72513]
[1723774024545,0.24855075,2569.0,2568.6,2.72513]
[1723774024757,0.33666906,2568.9,2568.6,2.72513]
[1723774024956,0.08811831,2568.9,2568.6,2.72513]
[1723774025196,2.72465,2569.2,2568.6,2.72513]
[1723774025397,0.33668721,2569.1,2568.6,2.72513]
[1723774025599,0.24854159,2569.0,2568.6,2.72513]
[1723774025793,0.33662807,2568.9,2568.6,2.72513]
[1723774025992,0.08808648,2568.9,2568.6,2.72513]
[1723774026323,3.71207377,2569.2,2568.6,2.72513]
[1723774026459,0.08811242,2568.8,2568.6,2.72513]
[1723774026656,5.4493,2569.2,2568.6,2.72513]
[1723774026894,0.0880764,2568.7,2568.6,2.72513]
[1723774027056,2.2873,2568.9,2568.6,2.72513]
[1723774027262,0.08809572,2568.7,2568.4,2.72536]
[1723774027497,2.2873,2568.9,2568.4,2.72536]
[1723774027700,0.08809754,2568.6,2568.4,2.72536]
[1723774027856,2.2873,2568.9,2568.4,2.72536]
[1723774028203,2.72501,2568.8,2568.2,5.56690509]
[1723774028496,0.33667834,2568.7,2568.2,2.72557]
[1723774028698,2.51709526,2568.6,2568.2,2.72557]
[1723774028894,0.24859526,2568.5,2568.2,2.72557]
[1723774029060,0.33649161,2568.5,2568.2,2.72557]
[1723774029260,0.08789635,2568.5,2568.2,2.72557]
[1723774030195,0.08789635,2568.5,2568.0,2.72582]
[1723774030395,0.24866649,2568.4,2568.0,2.72582]
[1723774030610,0.08766995,2568.3,2568.0,2.72582]
[1723774031191,0.50815064,2568.5,2568.0,2.72582]
[1723774031501,0.24866893,2568.4,2568.0,2.72582]
[1723774031663,0.33635721,2568.4,2568.0,2.72582]
[1723774031862,0.24866755,2568.3,2568.0,2.72582]
[1723774032101,0.33634372,2568.3,2568.0,2.72582]
[1723774032262,0.08767617,2568.3,2568.0,2.72582]
[1723774032716,2.2685,2568.6,2568.1,2.72573]
[1723774032873,2.2685,2568.6,2568.1,2.4112]
[1723774032874,0.24863227,2568.5,2568.1,2.4112]
[1723774033192,0.33630639,2568.5,2568.1,2.4112]
[1723774033511,0.08767412,2568.5,2568.1,3.33849466]
[1723774033672,0.08767412,2568.5,2568.2,2.72557]
[1723774034492,0.08767412,2568.5,2568.3,35.0]
[1723774035021,0.08767412,2568.5,2568.3,37.72551]
[1723774035158,0.08767412,2568.5,2568.3,35.0]
[1723774035362,6.62703868,2568.7,2568.3,37.2308534]
[1723774035607,0.08762458,2568.4,2568.3,37.2308534]
[1723774035898,6.62703868,2568.7,2568.3,37.2308534]
[1723774036063,0.08764988,2568.4,2568.3,37.2308534]
[1723774036258,6.62703868,2568.7,2568.3,37.2308534]
[1723774036505,0.08765299,2568.4,2568.3,37.2308534]
[1723774036795,0.33335536,2568.4,2568.3,39.9563734]
[1723774037108,0.08472894,2568.4,2568.3,39.9563734]
[1723774037462,6.62703868,2568.7,2568.3,39.9563734]
[1723774037688,0.08471339,2568.4,2568.3,39.9563734]
[1723774037855,6.62703868,2568.7,2568.3,39.9563734]
[1723774038060,0.08470527,2568.4,2568.3,35.0]
[1723774038260,8.92613868,2568.7,2568.3,35.0]
[1723774038557,0.24862779,2568.6,2568.3,35.0]
[1723774038800,0.0847236,2568.5,2568.3,35.0]
[1723774038999,0.0847236,2568.5,2568.3,37.97910974]
[1723774039297,8.92613868,2568.7,2568.3,37.97910974]
[1723774039457,0.0847146,2568.4,2568.3,35.0]
[1723774039838,8.92613868,2568.7,2568.3,35.0]
[1723774040038,0.33337485,2568.6,2568.3,35.0]
[1723774040191,0.24863292,2568.5,2568.3,35.0]
[1723774040391,0.08470216,2568.4,2568.3,35.0]
[1723774040829,8.92613868,2568.7,2568.3,35.0]
[1723774041144,0.33336251,2568.6,2568.3,35.0]
[1723774041305,0.24863302,2568.5,2568.3,35.0]
[1723774041631,0.08470838,2568.4,2568.3,35.0]
[1723774042303,8.92613868,2568.7,2568.3,35.0]
[1723774042506,0.08471149,2568.4,2568.3,35.0]
[1723774042938,8.92613868,2568.7,2568.3,35.0]
[1723774043242,0.2486434,2568.6,2568.3,35.0]
[1723774043578,0.08472982,2568.5,2568.3,35.0]
[1723774044331,8.92613868,2568.7,2568.3,35.0]
[1723774044534,0.08470216,2568.4,2568.3,35.0]
[1723774044690,8.92613868,2568.7,2568.3,35.0]
[1723774044891,0.08470216,2568.4,2568.3,35.0]
[1723774045092,8.92613868,2568.7,2568.3,35.0]
[1723774045291,0.08470527,2568.4,2568.3,46.16076]
[1723774045535,0.08470527,2568.4,2568.3,49.54458754]
[1723774045536,0.00236337,2568.4,2568.3,49.54458754]
[1723774045742,0.00236337,2568.4,2568.3,53.46799119]
[1723774045743,0.07909627,2568.4,2568.3,53.46799119]
[1723774045905,6.62703868,2568.7,2568.6,2.72521]
[1723774046126,2.4689,2569.0,2568.6,4.07880318]
[1723774046326,0.24854907,2568.9,2568.6,2.72521]
[1723774046635,0.32764961,2568.9,2568.7,35.0]
[1723774046943,0.24856697,2568.8,2568.7,35.0]
[1723774047250,0.32765852,2568.8,2568.7,35.0]
[1723774047762,0.07909155,2568.8,2568.7,35.0]
[1723774047922,0.07909155,2568.8,2568.7,38.07750531]
[1723774048109,2.4689,2569.0,2568.7,38.07750531]
[1723774048435,0.24856391,2568.9,2568.7,38.07750531]
[1723774048637,0.07907911,2568.8,2568.7,38.07750531]
[1723774048804,0.32764302,2568.8,2568.7,38.07750531]
[1723774049329,0.32764248,2568.8,2568.7,38.07750531]
[1723774049530,0.07907911,2568.8,2568.7,38.07750531]
[1723774049930,0.24855975,2568.8,2568.7,38.07750531]
[1723774050145,0.32764819,2568.8,2568.7,38.07750531]
[1723774050842,0.07908844,2568.8,2568.7,38.07750531]
[1723774051224,2.4689,2569.0,2568.7,38.07750531]
[1723774051462,0.32773671,2568.9,2568.7,38.07750531]
[1723774051760,0.07917582,2568.9,2568.8,0.82889909]
[1723774052065,0.3277316,2568.9,2568.8,0.82889909]
[1723774052272,0.3277316,2568.9,2568.6,2.72514]
[1723774052570,0.3277316,2568.9,2568.8,35.0]
[1723774052571,0.07917582,2568.9,2568.8,35.0]
[1723774052774,0.32773831,2568.9,2568.8,35.0]
[1723774053926,0.07917582,2568.9,2568.8,36.363]
[1723774054235,0.32773654,2568.9,2568.8,36.363]
[1723774055334,0.32773654,2568.9,2568.8,1.363]
[1723774056024,0.07917582,2568.9,2568.8,36.363]
[1723774056227,0.3277408,2568.9,2568.8,36.363]
[1723774057063,0.3277408,2568.9,2568.8,1.363]
[1723774057942,0.07917582,2568.9,2568.8,1.363]
[1723774058156,0.32773287,2568.9,2568.8,1.363]
[1723774061706,0.32773287,2568.9,2568.8,36.363]
[1723774061905,0.32773287,2568.9,2568.8,39.088]
[1723774062307,0.32772814,2568.9,2568.8,39.088]
[1723774064186,0.32772814,2568.9,2568.8,39.08705477]
[1723774064794,0.3277192,2568.9,2568.8,39.08705477]
[1723774065294,0.07917582,2568.9,2568.8,39.08705477]
[1723774065689,2.4309,2569.3,2568.9,2.7249]
[1723774065896,0.24853765,2569.2,2569.1,1.363]
[1723774066435,0.24853765,2569.2,2569.1,36.363]
[1723774066998,0.32780147,2569.2,2569.1,36.363]
[1723774067740,0.32779674,2569.2,2569.1,36.363]
[1723774069099,0.32779674,2569.2,2569.1,35.0]
[1723774069515,1.52266327,2569.2,2568.5,6.25868655]
[1723774069711,2.65153838,2569.1,2568.6,1.35345205]
[1723774069947,0.24853838,2569.0,2568.8,1.363]
[1723774070250,0.24853838,2568.9,2568.8,36.363]
[1723774070452,0.327748,2568.9,2568.8,36.363]
[1723774071653,0.327748,2568.9,2568.8,35.0]
[1723774071863,2.72511,2568.7,2568.3,0.80817655]
[1723774072155,3.052648,2568.9,2568.5,1.363]
[1723774072156,3.24346881,2568.6,2568.5,1.363]
[1723774072309,2.73065781,2568.6,2568.5,36.363]
[1723774072733,2.65153838,2568.6,2568.5,36.363]
[1723774073225,2.73065861,2568.6,2568.5,36.363]
[1723774073762,0.32765861,2568.6,2568.5,36.363]
[1723774074758,0.07912023,2568.6,2568.5,36.363]
[1723774074916,0.32772457,2568.6,2568.5,36.363]
[1723774075114,0.24860434,2568.6,2568.5,36.363]
[1723774075317,0.32764641,2568.6,2568.5,36.363]
[1723774075650,0.32764641,2568.6,2568.5,1.363]
[1723774075856,0.32765139,2568.6,2568.5,1.363]
[1723774076020,0.32765139,2568.6,2568.5,36.363]
[1723774078770,0.07904207,2568.6,2568.5,36.363]
[1723774078973,0.3276647,2568.6,2568.5,1.363]
[1723774079176,5.1001,2568.9,2568.5,1.363]
[1723774079491,0.24861275,2568.8,2568.5,36.363]
[1723774079786,0.24861275,2568.7,2568.5,36.363]
[1723774079946,0.24861275,2568.6,2568.5,36.363]
[1723774080147,0.32763426,2568.6,2568.5,36.363]
[1723774081845,0.24862137,2568.6,2568.5,36.363]
[1723774082469,0.24862137,2568.6,2568.5,1.363]
[1723774082791,0.32765532,2568.6,2568.5,1.363]
[1723774083094,0.32765532,2568.6,2568.5,36.363]
[1723774084843,2.308,2568.5,2568.2,0.80817655]
[1723774085049,2.308,2568.5,2568.1,2.03072413]
[1723774085050,0.5806087,2568.4,2568.1,2.03072413]
[1723774085278,0.5806087,2568.4,2568.0,39.08885]
[1723774085279,0.24862137,2568.3,2568.0,39.08885]
[1723774085544,0.24862137,2568.2,2568.1,1.3537955]
[1723774085777,0.24862137,2568.3,2568.0,35.0]
[1723774085942,0.24862137,2568.2,2568.1,1.35380899]
[1723774086145,0.07642487,2568.2,2568.0,36.363]
[1723774086391,0.24862137,2568.2,2568.0,36.363]
[1723774086590,2.308,2568.5,2568.0,36.363]
[1723774086772,0.24867633,2568.4,2568.0,36.363]
[1723774086978,0.24867633,2568.3,2568.0,36.363]
[1723774087285,0.32505147,2568.2,2568.0,36.363]
[1723774087485,0.07637514,2568.2,2568.0,36.363]
[1723774087783,3.45803329,2568.5,2568.0,36.363]
[1723774087992,0.07634747,2568.1,2568.0,36.363]
[1723774088203,3.45803329,2568.5,2568.0,36.363]
[1723774088354,0.07635058,2568.1,2568.0,36.363]
[1723774088550,2.308,2568.5,2568.0,36.363]
[1723774088767,0.24867999,2568.4,2568.0,36.363]
[1723774088968,0.24867999,2568.3,2568.0,36.363]
[1723774089384,0.07635226,2568.2,2568.0,36.363]
[1723774089653,2.308,2568.5,2568.0,36.363]
[1723774089950,0.07637689,2568.4,2568.0,36.363]
[1723774090283,0.32504771,2568.4,2568.0,36.363]
[1723774090451,0.24867082,2568.3,2568.0,36.363]
[1723774090651,0.07635888,2568.2,2568.0,36.363]
[1723774090895,5.03333,2568.5,2568.0,36.363]
[1723774091064,0.32504973,2568.4,2568.1,1.35370323]
[1723774091265,2.308,2568.5,2568.3,1.363]
[1723774091479,2.3733,2568.7,2568.3,1.363]
[1723774091679,0.32493826,2568.6,2568.3,1.363]
[1723774091881,0.24862952,2568.5,2568.3,1.363]
[1723774092083,0.07628141,2568.4,2568.3,1.363]
[1723774092285,0.32491093,2568.4,2568.3,1.363]
[1723774093707,0.07628141,2568.4,2568.3,1.363]
[1723774094064,0.24866958,2568.4,2568.3,1.363]
[1723774094263,0.07629696,2568.4,2568.3,1.363]
[1723774094492,0.24866958,2568.5,2568.3,1.363]
[1723774094798,0.32496654,2568.4,2568.3,1.363]
[1723774095567,0.32496654,2568.4,2568.1,1.363]
[1723774095897,0.24866958,2568.3,2568.2,35.0]
[1723774096057,0.32496376,2568.3,2568.2,35.0]
[1723774096264,0.32496376,2568.3,2568.1,1.363]
[1723774096455,0.24866958,2568.2,2568.1,1.363]
[1723774096765,0.3249361,2568.2,2568.1,36.363]
[1723774097185,0.24866958,2568.2,2568.1,36.363]
[1723774097386,0.24866958,2568.3,2568.1,36.363]
[1723774097587,5.983426,2568.4,2568.1,36.363]
[1723774097794,0.2486809,2568.3,2568.1,36.363]
[1723774098066,0.32497957,2568.3,2568.1,36.363]
[1723774098408,0.2486809,2568.2,2568.1,36.363]
[1723774098935,0.32497368,2568.2,2568.1,36.363]
[1723774099765,0.32497368,2568.2,2568.1,1.363]
[1723774100334,0.32497368,2568.2,2568.1,36.363]
[1723774101516,0.07629278,2568.2,2568.1,36.363]
[1723774102036,0.24868807,2568.2,2568.1,36.363]
[1723774102202,0.32491773,2568.2,2568.1,36.363]
[1723774103307,0.32491773,2568.2,2568.1,1.363]
[1723774103765,0.32491773,2568.2,2568.1,36.363]
[1723774105825,0.32492407,2568.2,2568.1,36.363]
[1723774106821,0.32492407,2568.2,2568.1,1.363]
[1723774107318,0.32492407,2568.2,2568.1,36.363]
[1723774109626,0.32491934,2568.2,2568.1,36.363]
[1723774112101,0.07622966,2568.2,2568.1,36.363]
[1723774112405,0.24869048,2568.2,2568.1,36.363]
[1723774112804,0.32489816,2568.2,2568.1,36.363]
[1723774113042,0.32489816,2568.2,2568.1,1.363]
[1723774113527,0.32489816,2568.2,2568.1,36.363]
[1723774116833,0.07620768,2568.2,2568.1,1.363]
[1723774117061,0.2487004,2568.2,2568.1,1.363]
[1723774117358,0.32493127,2568.2,2568.1,36.363]
[1723774118063,0.32493311,2568.2,2568.1,36.363]
[1723774120533,0.32493311,2568.2,2568.1,1.363]
[1723774120934,0.32493311,2568.2,2568.1,36.363]
[1723774121250,0.32493311,2568.2,2568.1,41.40535]
[1723774121448,3.74257859,2568.9,2568.5,2.72525]
[1723774121776,0.31982828,2568.8,2568.7,4.08811]
[1723774121938,0.07121499,2568.8,2568.7,5.4415874]
[1723774122127,0.31977753,2568.8,2568.7,8.24454673]
[1723774122347,2.4754,2569.4,2569.0,2.72472]
[1723774122528,7.49017517,2569.8,2569.0,2.72472]
[1723774122529,0.24851883,2569.3,2569.0,2.72472]
[1723774122757,0.07138615,2569.3,2569.2,4.08751]
[1723774123074,0.2484885,2569.3,2569.2,39.08751]
[1723774123255,2.4754,2569.6,2569.2,39.08751]
[1723774123462,0.24848105,2569.5,2569.2,39.08751]
[1723774123794,0.06952059,2569.4,2569.2,39.08751]
[1723774124184,2.4754,2569.6,2569.2,39.08751]
[1723774124335,0.24848345,2569.5,2569.4,4.0873]
[1723774124536,2.4754,2569.9,2569.4,1.363]
[1723774124736,0.24843025,2569.8,2569.7,4.08705]
[1723774124970,0.06987447,2569.8,2569.7,4.08705]
[1723774125232,2.4754,2570.3,2569.8,2.72394]
[1723774125474,0.0699715,2570.2,2569.9,4.08683]
[1723774125631,2.4754,2570.3,2570.1,1.363]
[1723774125829,2.4754,2570.3,2569.8,2.72394]
[1723774125830,0.06998739,2570.2,2569.9,1.363]
[1723774126059,2.4754,2570.3,2569.9,1.363]
[1723774126336,0.06998739,2570.2,2569.9,1.363]
[1723774126679,2.995272,2570.3,2569.9,1.363]
[1723774126835,0.06996874,2570.2,2569.9,1.363]
[1723774127171,2.995272,2570.3,2569.9,1.363]
[1723774127383,0.06995664,2570.1,2569.9,1.363]
[1723774127554,2.995272,2570.3,2569.9,4.08684]
[1723774127555,2.4754,2570.3,2569.9,4.08684]
[1723774127756,0.06996349,2570.0,2569.9,4.08684]
[1723774127963,2.4754,2570.3,2569.9,4.08684]
[1723774127964,2.4754,2570.3,2569.9,1.363]
[1723774128296,2.4754,2570.3,2569.7,1.363]
[1723774128297,2.4474,2569.9,2569.7,1.363]
[1723774128657,3.27362,2570.2,2569.7,1.363]
[1723774128658,0.07011231,2569.8,2569.7,1.363]
[1723774128861,5.72102,2570.2,2569.7,1.363]
[1723774129061,5.72102,2570.2,2569.9,1.363]
[1723774129252,0.07014577,2570.1,2569.9,1.363]
[1723774132260,5.06425,2570.4,2569.9,1.363]
[1723774132464,0.07015244,2570.3,2569.9,1.363]
[1723774132663,2.79363244,2570.3,2569.9,1.363]
[1723774133949,2.4296,2570.0,2569.7,36.363]
[1723774134156,2.4296,2570.0,2569.7,1.363]
[1723774134157,0.515323,2569.9,2569.7,1.363]
[1723774134391,0.07012216,2569.9,2569.7,1.363]
[1723774135555,2.4296,2570.0,2569.7,1.363]
[1723774135801,2.4296,2570.0,2569.9,1.363]
[1723774136496,5.1131,2570.2,2569.9,1.363]
[1723774136809,0.07011412,2570.1,2569.9,1.363]
[1723774137180,5.1131,2570.2,2569.7,1.363]
[1723774137353,0.51131,2570.1,2569.7,1.363]
[1723774137564,2.3895,2569.9,2569.5,36.363]